Workbook

Sheet 1. Forside
A1: Lyngby-Taarbæk Spildevand A/S
D8: Bilag A
D13: Indholdsfortegnelse
C16: Fane nr. 2 | D16: Samlet prisloft
C17: Fane nr. 3 | D17: Driftsomkostninger
C18: Fane nr. 4 | D18: Historiske investeringer
C19: Fane nr. 5 | D19: Gennemførte investeringer
C20: Fane nr. 6 | D20: Korrektion investeringer
C21: Fane nr. 7 | D21: Planlagte investeringer
C22: Fane nr. 8 | D22: 1:1 omkostninger
C23: Fane nr. 9 | D23: Miljø- og servicemål
C24: Fane nr. 10 | D24: Klimatilpasning
C25: Fane nr. 11 | D25: Nettofinansielle poster
C26: Fane nr. 12 | D26: Over- eller underdækning
C27: Fane nr. 13 | D27: Kontrol med indtægtsrammen og oversigt over ekstraordinære effektiviseringsgevinster

Sheet 2. Samlet prisloft
A1: ='1. Forside'!A1 -> Lyngby-Taarbæk Spildevand A/S
B4: Fane 2. Samlet prisloft for 2015
B6: Driftsomkostninger
B7: Driftsomkostninger i prisloftet for 2014 | C7: ='3. Driftsomkostninger'!C20 -> 21806057.36 | D7: kr.
B8: Bortfald af væsentlige omkostninger | C8: =-'3. Driftsomkostninger'!C16 -> 0 | D8: kr.
B9: Korrektion for prisudviklingen 2014-2015 | C9: ='3. Driftsomkostninger'!C22 -> 17444.84589 | D9: kr.
B10: Forhøjelse til effektivt niveau iht. benchmarkingen | C10: ='3. Driftsomkostninger'!C28 -> 0 | D10: kr.
B11: Korrektion for generelt effektiviseringskrav | C11: =-'3. Driftsomkostninger'!C34 -> -95946.65241 | D11: kr.
B12: Korrektion for individuelt effektiviseringskrav | C12: =-'3. Driftsomkostninger'!C43 -> -1090302.868 | D12: kr.
B13: Driftsomkostninger i alt | C13: =SUM(C7:C12) -> 20637252.69 | D13: kr. | E13: =C13 -> 20637252.69 | F13: kr.
B14: Investeringer
B15: Tillæg for historiske investeringer | C15: ='4. Historiske investeringer'!C9 -> 18076278.93 | D15: kr.
B16: Tillæg for gennemførte investeringer i 2011-2013 | C16: ='5. Gennemførte investeringer'!F65 -> 3967898.58 | D16: kr.
B17: Korrektion af tillæg for planlagte investeringer vedrørende 2013 | C17: ='6. Korrektion investeringer'!C10 -> -534683.46 | D17: kr.
B18: Tillæg for planlagte investeringer i 2014 og 2015 | C18: ='7. Planlagte investeringer'!F48 -> 1211864.759 | D18: kr.
B19: Investeringstillæg i alt | C19: =SUM(C15:C18) -> 22721358.81 | D19: kr. | E19: =C19 -> 22721358.81 | F19: kr.
B20: Øvrige omkostninger mv.
B21: Tillæg for 1:1 omkostninger i 2015 | C21: ='8. 1-1 omkostninger'!C10 -> 25105190 | D21: kr.
B22: Tillæg vedr. revisorerklæringer og DANVA/FVD-kontingent | C22: ='8. 1-1 omkostninger'!C18 -> 82060 | D22: kr.
B23: Korrektion ift. faktiske 1:1 omkostninger i 2013 | C23: ='8. 1-1 omkostninger'!C24 -> -784092 | D23: kr.
B24: Tillæg for driftsomkostninger til miljø- og servicemål i 2015 | C24: ='9. Miljø- og servicemål'!C8 -> 0 | D24: kr.
B25: Korrektion ift. faktiske driftsomkostninger til miljø- og servicemål i 2013 | C25: ='9. Miljø- og servicemål'!C15 -> 0 | D25: kr.
B26: Tillæg for driftsomkostninger til medfinansiering af klimatilpasningsprojekter i 2015 | C26: ='10. Klimatilpasning'!C11 -> 3145350 | D26: kr.
B27: Korrektion ift. faktiske omkostninger til medfinansiering af klimatilpasningsprojekter i 2013 | C27: ='10. Klimatilpasning'!C18 -> 0 | D27: kr.
B28: Tillæg/fradrag for nettofinansielle poster i 2015 | C28: ='11. Nettofinansielle poster'!C9 -> 3202184 | D28: kr.
B29: Korrektion ift. faktiske nettofinansielle poster i 2013 | C29: ='11. Nettofinansielle poster'!C16 -> 1029323 | D29: kr.
B30: Øvrige omkostninger mv. i alt | C30: =SUM(C21:C29) -> 31780015 | D30: kr. | E30: =C30 -> 31780015 | F30: kr.
B31: Historisk over- eller underdækning
B32: Tillæg/fradrag for over- eller underdækning til og med 2010 | C32: ='12. Over- eller underdækning'!C11 -> -7795732.503 | D32: kr. | E32: =C32 -> -7795732.503 | F32: kr.
B33: Korrektion i forhold til tidligere indtægtsramme
B34: Korrektion for overholdelse af indtægtsramme i prisloft 2013 | C34: ='13. Kontrol med indtægtsrammen'!E27 -> 4664341.098 | D34: kr. | E34: =C34 -> 4664341.098 | F34: kr.
B35: Samlet prisloft
B36: Indtægtsramme i 2015 | E36: =SUM(E13:E34) -> 72007235.1 | F36: kr.
B37: Debiteret vandmængde i 2013 | E37: 2747787 | F37: m3
B38: Prisloft 2015 | E38: =E36/E37 -> 26.20553744 | F38: kr./m3

Sheet 3. Driftsomkostninger
A1: ='1. Forside'!A1 -> Lyngby-Taarbæk Spildevand A/S
B4: Fane 3. Driftsomkostninger
B6: Driftsomkostningerne i prisloftet for 2014
B7: Korrigerede driftsomkostninger i prisloftet for 2013 (DOiPL 2013) | C7: 22596951.1 | D7: kr.
B8: Prisfremskrivning 1,5 pct. | C8: =0.015*SUM(C7:C7) -> 338954.2665 | D8: kr.
B9: Generelt effektiviseringskrav (0 pct.) | C9: 0 | D9: kr.
B10: Individuelt effektiviseringskrav | C10: -1129848 | D10: kr.
B11: Driftsomkostningerne i prisloftet for 2014 (DOiPL 2014) | C11: =SUM(C7:C10) -> 21806057.36 | D11: kr.
B14: Korrektion for forventet bortfald af væsentlige omkostninger
B15: Selskabets indberettede bortfald af væsentlige omkostninger inden 2015 | C15: 0 | D15: kr.
B16: Korrektion for forventet bortfald | C16: =SUM(C15:C15) -> 0 | D16: kr.
B19: Korrektion for prisudviklingen fra 2014-2015
B20: Driftsomkostningerne i prisloftet for 2014 | C20: =C11-C16 -> 21806057.36 | D20: kr.
B21: Prisudvikling 2014 - 2015 | C21: 0.08 | D21: pct.
B22: Korrektion for prisudvikling | C22: =C20*(C21/100) -> 17444.84589 | D22: kr.
B25: Eventuel forhøjelse til effektivt niveau iht. benchmarkingen
B26: Selskabets effektive driftsomkostninger iht. benchmarkingen | C26: 10438559.66 | D26: kr.
B27: Selskabets pristalskorrigerede driftsomkostninger i 2015-niveau | C27: =C20+C22 -> 21823502.21 | D27: kr.
B28: Eventuel forhøjelse til effektivt niveau | C28: =IF(C27>C26,0,C26-C27) -> 0 | D28: kr.
B31: Korrektion for generelt effektiviseringskrav
B32: Driftsomkostningerne i prisloftet for 2014 | C32: =C20 -> 21806057.36 | D32: kr.
B33: Generelt effektiviseringskrav | C33: 0.44 | D33: pct.
B34: Endeligt generelt effektiviseringskrav | C34: =C32*(C33/100) -> 95946.65241 | D34: kr.
B37: Korrektion for individuelt effektiviseringskrav
B38: Rå effektiviseringspotentiale | C38: 11387123.16 | D38: kr.
B39: Effektiviseringspotentiale efter eventuel korrektion for særlige forhold | C39: 11367497.7 | D39: kr.
B40: Effektiviseringspotentiale efter forsigtighedshensyn | C40: 8676630.225 | D40: kr.
B41: Effektiviseringspotentiale efter eventuel korrektion for sammensætning af signifikante costdrivere | C41: 8676630.225 | D41: kr.
B42: Umiddelbart effektiviseringskrav | C42: =C41/4 -> 2169157.556 | D42: kr.
B43: Endeligt individuelt effektiviseringskrav | C43: =IF(C42>0.05*C20,0.05*C20,IF(C42<0.01*C20,0,C42)) -> 1090302.868 | D43: kr.

Sheet 4. Historiske investeringer
A1: ='3. Driftsomkostninger'!A1 -> Lyngby-Taarbæk Spildevand A/S
B4: Fane 4. Historiske investeringer
B6: Tillæg for historiske investeringer
B7: Værdi af selskabets materielle anlægsaktiver pr. 1. januar 2010 | C7: 603739262.1 | D7: kr.
B8: Den årlige standardafskrivning på de materielle anlægsaktiver iht. POLKA | C8: 18076278.93 | D8: kr.
B9: Tillæg i alt i 2015 | C9: =C8 -> 18076278.93 | D9: kr.

Sheet 5. Gennemførte investeringer
A1: ='4. Historiske investeringer'!A1 -> Lyngby-Taarbæk Spildevand A/S
B4: Fane 5. Gennemførte investeringer i 2010 - 2013
B6: Tillæg for gennemførte investeringer i 2013
B7: Beskrivelse af investeringen | C7: Årstal | D7: Std. levetid (år) | E7: Anskaffelses-pris (kr.) | F7: Afskrivning
B8: Køretøjer, store lastvogne (> 3.500 kg.) | C8: 2013 | D8: 5 | E8: 37313 | F8: =E8/D8 -> 7462.6 | G8: kr.
B9: Køretøjer, entreprenørmaskiner | C9: 2013 | D9: 5 | E9: 57500 | F9: =E9/D9 -> 11500 | G9: kr.
B10: Arbejdsplads | C10: 2013 | D10: 5 | E10: 55057 | F10: 11011.4 | G10: kr.
B11: Køretøjer, entreprenørmaskiner | C11: 2013 | D11: 5 | E11: 35000 | F11: 7000 | G11: kr.
B12: Køretøjer, entreprenørmaskiner | C12: 2013 | D12: 5 | E12: 89000 | F12: 17800 | G12: kr.
B13: Køretøjer, entreprenørmaskiner | C13: 2013 | D13: 5 | E13: 385000 | F13: 77000 | G13: kr.
B14: Pumpestationer m. overbygning (< 20 m2), SRO | C14: 2013 | D14: 10 | E14: 27966 | F14: 2796.6 | G14: kr.
B15: Arbejdsplads | C15: 2013 | D15: 5 | E15: 224341 | F15: 44868.2 | G15: kr.
B16: Strømpeforing Ø 200 mm < Ledningsnet = Ø 500 mm | C16: 2013 | D16: 50 | E16: 1758752 | F16: 35175.04 | G16: kr.
B17: Ledningsnet = Ø 200 mm | C17: 2013 | D17: 75 | E17: 1962627 | F17: 26168.36 | G17: kr.
B18: Pumpeinstallation Miljøklasse A (100-300 l/s) - Mek/EL | C18: 2013 | D18: 20 | E18: 150000 | F18: 7500 | G18: kr.
B19: Ledningsnet = Ø 200 mm | C19: 2013 | D19: 75 | E19: 217365 | F19: 2898.2 | G19: kr.
B20: Ø 200 mm < Ledningsnet = Ø 500 mm | C20: 2013 | D20: 75 | E20: 2350003 | F20: 31333.37333 | G20: kr.
B21: Forsinkelsesbassiner, lukkede med automatisk rensning og SRO Miljøklasse A (500-1.000 m3) - Mek/EL | C21: 2013 | D21: 20 | E21: 46639 | F21: 2331.95 | G21: kr.
B22: Forsinkelsesbassiner, lukkede med automatisk rensning og SRO Miljøklasse A (500-1.000 m3) - Konstruktioner | C22: 2013 | D22: 75 | E22: 186557 | F22: 2487.426667 | G22: kr.
B23: Brønde | C23: 2013 | D23: 75 | E23: 3644562 | F23: 48594.16 | G23: kr.
B24: Stik | C24: 2013 | D24: 75 | E24: 911141 | F24: 12148.54667 | G24: kr.
B25: Ø 200 mm < Ledningsnet = Ø 500 mm | C25: 2013 | D25: 75 | E25: 4555702 | F25: 60742.69333 | G25: kr.
B26: Ø 800 mm < Ledningsnet = Ø 1000 mm | C26: 2013 | D26: 75 | E26: 168701 | F26: 2249.346667 | G26: kr.
B27: Pumpestationer i brønde (< 6,25 m2), Mek/EL | C27: 2013 | D27: 20 | E27: 19502 | F27: 975.1 | G27: kr.
B28: Brønde | C28: 2013 | D28: 75 | E28: 154510 | F28: 2060.133333 | G28: kr.
B29: Stik | C29: 2013 | D29: 75 | E29: 154510 | F29: 2060.133333 | G29: kr.
B30: Ø 200 mm < Ledningsnet = Ø 500 mm | C30: 2013 | D30: 75 | E30: 308905 | F30: 4118.733333 | G30: kr.
B31: Ø 200 mm < Ledningsnet = Ø 500 mm | C31: 2013 | D31: 75 | E31: 764005 | F31: 10186.73333 | G31: kr.
B32: Ø 200 mm < Ledningsnet = Ø 500 mm | C32: 2013 | D32: 75 | E32: 339830 | F32: 4531.066667 | G32: kr.
B33: Ø 200 mm < Ledningsnet = Ø 500 mm | C33: 2013 | D33: 75 | E33: 81123 | F33: 1081.64 | G33: kr.
B34: Pumpestationer i brønde (< 6,25 m2), Mek/EL | C34: 2013 | D34: 20 | E34: 29450 | F34: 1472.5 | G34: kr.
B35: Ø 200 mm < Ledningsnet = Ø 500 mm | C35: 2013 | D35: 75 | E35: 771984 | F35: 10293.12 | G35: kr.
B36: Ø 200 mm < Ledningsnet = Ø 500 mm | C36: 2013 | D36: 75 | E36: 4621460 | F36: 61619.46667 | G36: kr.
B37: Strømpeforing = Ø 200 mm | C37: 2013 | D37: 50 | E37: 1470557 | F37: 29411.14 | G37: kr.
B38: Pumpestationer i brønde (< 6,25 m2), Konstruktioner | C38: 2013 | D38: 50 | E38: 16862 | F38: 337.24 | G38: kr.
B39: Pumpestationer m. overbygning (< 20 m2), Konstruktioner | C39: 2013 | D39: 50 | E39: 73761 | F39: 1475.22 | G39: kr.
B40: Strømpeforing Ø 200 mm < Ledningsnet = Ø 500 mm | C40: 2013 | D40: 50 | E40: 95863 | F40: 1917.26 | G40: kr.
B41: Strømpeforing = Ø 200 mm | C41: 2013 | D41: 50 | E41: 165651 | F41: 3313.02 | G41: kr.
B42: Strømpeforing = Ø 200 mm | C42: 2013 | D42: 50 | E42: 1124017 | F42: 22480.34 | G42: kr.
B43: Strømpeforing Ø 200 mm < Ledningsnet = Ø 500 mm | C43: 2013 | D43: 50 | E43: 5419081 | F43: 108381.62 | G43: kr.
B44: Forsinkelsesbassiner, lukkede med automatisk rensning og SRO Miljøklasse A (500-1.000 m3) - SRO | C44: 2013 | D44: 10 | E44: 1163215 | F44: 116321.5 | G44: kr.
B45: Forsinkelsesbassiner, lukkede med automatisk rensning og SRO Miljøklasse A (500-1.000 m3) - Mek/EL | C45: 2013 | D45: 20 | E45: 2093787 | F45: 104689.35 | G45: kr.
B46: Forsinkelsesbassiner, lukkede med automatisk rensning og SRO Miljøklasse A (500-1.000 m3) - Konstruktioner | C46: 2013 | D46: 75 | E46: 20007298 | F46: 266763.9733 | G46: kr.
B47: Forsinkelsesbassiner, lukkede med automatisk rensning og SRO Miljøklasse A (500-1.000 m3) - SRO | C47: 2013 | D47: 10 | E47: 2123343 | F47: 212334.3 | G47: kr.
B48: Forsinkelsesbassiner, lukkede med automatisk rensning og SRO Miljøklasse A (500-1.000 m3) - Mek/EL | C48: 2013 | D48: 20 | E48: 2831124 | F48: 141556.2 | G48: kr.
B49: Forsinkelsesbassiner, lukkede med automatisk rensning og SRO Miljøklasse A (500-1.000 m3) - Konstruktioner | C49: 2013 | D49: 75 | E49: 9201153 | F49: 122682.04 | G49: kr.
B50: Pumpestationer i brønde (< 6,25 m2), SRO | C50: 2013 | D50: 10 | E50: 434960 | F50: 43496 | G50: kr.
B51: Pumpestationer i brønde (< 6,25 m2), Mek/EL | C51: 2013 | D51: 20 | E51: 434960 | F51: 21748 | G51: kr.
B52: Pumpestationer i brønde (< 6,25 m2), Konstruktioner | C52: 2013 | D52: 50 | E52: 724933 | F52: 14498.66 | G52: kr.
B53: Strømpeforing = Ø 200 mm | C53: 2013 | D53: 50 | E53: 289973 | F53: 5799.46 | G53: kr.
B54: Ledningsnet = Ø 200 mm | C54: 2013 | D54: 75 | E54: 1014907 | F54: 13532.09333 | G54: kr.
B55: Ø 200 mm < Ledningsnet = Ø 500 mm | C55: 2013 | D55: 75 | E55: 2899733 | F55: 38663.10667 | G55: kr.
B56: Ø 1000 mm < Ledningsnet = Ø 1200 mm | C56: 2013 | D56: 75 | E56: 8699200 | F56: 115989.3333 | G56: kr.
B57: Ledningsnet = Ø 200 mm | C57: 2013 | D57: 75 | E57: 8594847 | F57: 114597.96 | G57: kr.
B58: Ø 200 mm < Ledningsnet = Ø 500 mm | C58: 2013 | D58: 75 | E58: 1119010 | F58: 14920.13333 | G58: kr.
B59: Ø 1000 mm < Ledningsnet = Ø 1200 mm | C59: 2013 | D59: 75 | E59: 3844849 | F59: 51264.65333 | G59: kr.
B60: Pumpestationer i brønde (< 6,25 m2), Mek/EL | C60: 2013 | D60: 20 | E60: 71415 | F60: 3570.75 | G60: kr.
B61: Forsinkelsesbassiner, lukkede uden automatisk rensning og SRO Miljøklasse B (mindre end 1.000 m3) | C61: 2013 | D61: 50 | E61: 1076854 | F61: 21537.08 | G61: kr.
B62: Ledningsnet = Ø 200 mm | C62: 2013 | D62: 75 | E62: 285661 | F62: 3808.813333 | G62: kr.
B63: Tillæg for 2013 | F63: =SUM(F8:F62) -> 2104555.77 | G63: kr.
B64: Tillæg for 2010 - 2012 | F64: 1863342.81 | G64: kr.
B65: Samlet tillæg for gennemførte investeringer | F65: =F63+F64 -> 3967898.58 | G65: kr.

Sheet 6. Korrektion investeringer
A1: ='5. Gennemførte investeringer'!A1 -> Lyngby-Taarbæk Spildevand A/S
B4: Fane 6. Korrektion af tillæg for planlagte investeringer
B6: Korrektion af tillæg for planlagte investeringer vedr. 2013
B7: Tillæg for planlagte investeringer i 2013 i prisloft 2013 | C7: 2864079 | D7: kr.
B8: Tillæg for planlagte investeringer i 2013 i prisloft 2014 | C8: 1879716 | D8: kr.
B9: Selskabets faktiske afskrivninger på gennemførte investeringer i 2013 | C9: ='5. Gennemførte investeringer'!F63 -> 2104555.77 | D9: kr.
B10: Korrektion af tillæg for planlagte investeringer vedr. 2013 | C10: =C9-C7+C9-C8 -> -534683.46 | D10: kr.

Sheet 7. Planlagte investeringer
A1: ='6. Korrektion investeringer'!A1 -> Lyngby-Taarbæk Spildevand A/S
B4: Fane 7. Planlagte investeringer
B6: Tillæg for planlagte investeringer i 2014 og 2015
B7: Beskrivelse af investeringen | C7: Årstal | D7: Std. levetid (år) | E7: Anskaffelses-pris (kr.) | F7: Afskrivning
B8: Små pumpestationer inkl. SRO-anlæg - By__Pumpestationer i brønde (< 6,25 m2), Konstruktioner | C8: 2014 | D8: 50 | E8: 206300 | F8: 4126 | G8: kr.
B9: Små pumpestationer inkl. SRO-anlæg - By__Pumpestationer i brønde (< 6,25 m2), Mek/EL | C9: 2014 | D9: 20 | E9: 55550 | F9: 2777.5 | G9: kr.
B10: Små pumpestationer inkl. SRO-anlæg - By__Pumpestationer i brønde (< 6,25 m2), SRO | C10: 2014 | D10: 10 | E10: 11110 | F10: 1111 | G10: kr.
B11: Store pumpestationer: inkl. SRO-anlæg - By__Pumpeinstallation Miljøklasse A (100-300 l/s) - Mek/EL | C11: 2014 | D11: 20 | E11: 331230 | F11: 16561.5 | G11: kr.
B12: Forsinkelsesbassiner - By__Forsinkelsesbassiner, lukkede med automatisk rensning og SRO Miljøklasse A (500-1.000 m3) - Konstruktioner | C12: 2014 | D12: 75 | E12: 2300000 | F12: 30666.66667 | G12: kr.
B13: Ledningsnet - By__Ø 200 mm < Ledningsnet ≤ Ø 500 mm | C13: 2014 | D13: 75 | E13: 515000 | F13: 6866.666667 | G13: kr.
B14: Brønde og stik, ledningsnet - By__Brønde | C14: 2014 | D14: 75 | E14: 320000 | F14: 4266.666667 | G14: kr.
B15: Brønde og stik, ledningsnet - By__Stik | C15: 2014 | D15: 75 | E15: 80000 | F15: 1066.666667 | G15: kr.
B16: Store pumpestationer: inkl. SRO-anlæg - By__Pumpeinstallation Miljøklasse A (100-300 l/s) - Mek/EL | C16: 2014 | D16: 20 | E16: 370000 | F16: 18500 | G16: kr.
B17: Ledningsnet - By__Ledningsnet | C17: 2014 | D17: 75 | E17: 830800 | F17: 11077.33333 | G17: kr.
B18: Forsinkelsesbassiner - City__Forsinkelsesbassiner, lukkede med automatisk rensning og SRO Miljøklasse A (500-1.000 m3) - Konstruktioner | C18: 2014 | D18: 75 | E18: 132077 | F18: 1761.026667 | G18: kr.
B19: Forsinkelsesbassiner - City__Forsinkelsesbassiner, lukkede med automatisk rensning og SRO Miljøklasse A (500-1.000 m3) - Mek/EL | C19: 2014 | D19: 20 | E19: 4265 | F19: 213.25 | G19: kr.
B20: Forsinkelsesbassiner - City__Forsinkelsesbassiner, lukkede med automatisk rensning og SRO Miljøklasse A (500-1.000 m3) - SRO | C20: 2014 | D20: 10 | E20: 4265 | F20: 426.5 | G20: kr.
B21: Store pumpestationer: inkl. SRO-anlæg - City__Pumpeinstallation Miljøklasse A (100-300 l/s) - Mek/EL | C21: 2014 | D21: 20 | E21: 3412 | F21: 170.6 | G21: kr.
B22: Ledningsnet - Indre city__Ø 200 mm < Ledningsnet ≤ Ø 500 mm | C22: 2014 | D22: 75 | E22: 3412 | F22: 45.49333333 | G22: kr.
B23: Ledningsnet - Indre city__Ledningsnet ≤ Ø 200 mm | C23: 2014 | D23: 75 | E23: 1706 | F23: 22.74666667 | G23: kr.
B24: Ledningsnet - By__Ø 1200 mm < Ledningsnet ≤ Ø 1600 mm | C24: 2014 | D24: 75 | E24: 212472 | F24: 2832.96 | G24: kr.
B25: Ledningsnet - By__Ø 200 mm < Ledningsnet ≤ Ø 500 mm | C25: 2014 | D25: 75 | E25: 75545.6 | F25: 1007.274667 | G25: kr.
B26: Brønde og stik, ledningsnet - By__Brønde | C26: 2014 | D26: 75 | E26: 47216 | F26: 629.5466667 | G26: kr.
B27: Små pumpestationer inkl. SRO-anlæg - By__Pumpestationer i brønde (< 6,25 m2), SRO | C27: 2014 | D27: 10 | E27: 56659.2 | F27: 5665.92 | G27: kr.
B28: Ledningsnet - By__Strømpeforing ≤ Ø 200 mm | C28: 2014 | D28: 50 | E28: 37772.8 | F28: 755.456 | G28: kr.
B29: Ledningsnet - By__Ø 500 mm < Ledningsnet ≤ Ø 800 mm | C29: 2014 | D29: 75 | E29: 42494.4 | F29: 566.592 | G29: kr.
B30: Store pumpestationer: inkl. SRO-anlæg - By__Pumpeinstallation Miljøklasse B (100-300 l/s) - Mek/EL | C30: 2014 | D30: 20 | E30: 94000 | F30: 4700 | G30: kr.
B31: Ledningsnet - By__Strømpeforing Ø 200 mm < Ledningsnet ≤ Ø 500 mm | C31: 2014 | D31: 50 | E31: 125000 | F31: 2500 | G31: kr.
B32: Brønde og stik, ledningsnet - By__Brønde | C32: 2014 | D32: 75 | E32: 300000 | F32: 4000 | G32: kr.
B33: Ledningsnet - By__Strømpeforing Ø 200 mm < Ledningsnet ≤ Ø 500 mm | C33: 2014 | D33: 50 | E33: 636600 | F33: 12732 | G33: kr.
B34: Overløbsbygværker - By__Installationer "ingen eller faste riste" (mindre end 7 m2) | C34: 2014 | D34: 20 | E34: 500000 | F34: 25000 | G34: kr.
B35: Ø 500 mm < Ledningsnet ≤ Ø 800 mm/by | C35: 2014 | D35: 50 | E35: 11948058 | F35: 238961.16 | G35: kr.
B36: Ledningsnet - citiy__Strømpeforing Ø 200 mm < Ledningsnet ≤ Ø 500 mm | C36: 2014 | D36: 50 | E36: 740000 | F36: 14800 | G36: kr.
B37: Ledningsnet - citiy__Strømpeforing Ø 500 mm < Ledningsnet ≤ Ø 800 mm | C37: 2014 | D37: 20 | E37: 1974590 | F37: 98729.5 | G37: kr.
B38: Store pumpestationer: inkl. SRO-anlæg - City__Pumpeinstallation Miljøklasse A (100-300 l/s) - Mek/EL | C38: 2014 | D38: 75 | E38: 5949355 | F38: 79324.73333 | G38: kr.
B39: Ø 200 mm < Ledningsnet = Ø 500 mm | C39: 2015 | D39: 75 | E39: 12900000 | F39: 172000 | G39: kr.
B40: Ø 500 mm < Ledningsnet = Ø 800 mm | C40: 2015 | D40: 75 | E40: 3600000 | F40: 48000 | G40: kr.
B41: Jordbassin Klasse B | C41: 2015 | D41: 50 | E41: 1800000 | F41: 36000 | G41: kr.
B42: Ø 500 mm < Ledningsnet = Ø 800 mm | C42: 2015 | D42: 75 | E42: 5400000 | F42: 72000 | G42: kr.
B43: Jordbassin Klasse A | C43: 2015 | D43: 50 | E43: 3600000 | F43: 72000 | G43: kr.
B44: Strømpeforing Ø 200 mm < Ledningsnet = Ø 500 mm | C44: 2015 | D44: 50 | E44: 8800000 | F44: 176000 | G44: kr.
B45: Strømpeforing Ø 500 mm < Ledningsnet = Ø 800 mm | C45: 2015 | D45: 50 | E45: 2200000 | F45: 44000 | G45: kr.
B46: Tillæg for 2014 | F46: =SUMIF(C8:C45,"2014",F8:F45) -> 591864.7593 | G46: kr.
B47: Tillæg for 2015 | F47: =SUMIF(C8:C45,"2015",F8:F45) -> 620000 | G47: kr.
B48: Tillæg i alt | F48: =F46+F47 -> 1211864.759 | G48: kr.

Sheet 8. 1-1 omkostninger
A1: ='7. Planlagte investeringer'!A1 -> Lyngby-Taarbæk Spildevand A/S
B4: Fane 8. 1:1 omkostninger
B6: Tillæg for budgetterede 1:1 omkostninger i 2015
B7: Betaling til Forsyningssekretariatet | C7: 33000 | D7: kr.
B8: Køb af varer og tjenesteydelser hos et andet prisloftreguleret vandselskab | C8: 24457190 | D8: kr.
B9: Ejendomsskatter | C9: 615000 | D9: kr.
B10: Tillæg i alt | C10: =SUM(C7:C9) -> 25105190 | D10: kr.
B15: Tillæg for budgetterede nødvendige udgifter til revisorerklæringer samt ordinært medlemskab af DANVA og FVD i 2015
B16: Betaling for ordinært medlemskab af DANVA/FVD | C16: 60000 | D16: kr.
B17: Betaling for revisorerklæringer | C17: 22060 | D17: kr.
B18: Tillæg i alt | C18: =SUM(C16:C17) -> 82060 | D18: kr.
B21: Korrektion af tillæg for faktiske 1:1 omkostninger (inkl. revisorerklæringer og ordinært medlemskab af DANVA/FVD) i 2013
B22: Selskabets faktiske 1:1 omkostninger mv. i 2013, jf. reguleringsregnskabet | C22: 35971715 | D22: kr.
B23: Tillæg for budgetterede 1:1 omkostninger mv. i prisloft 2013 | C23: 36755807 | D23: kr.
B24: Korrektion af tillæg for budgetterede 1:1 omkostninger mv. i 2013 | C24: =C22-C23 -> -784092 | D24: kr.

Sheet 9. Miljø- og servicemål
A1: ='8. 1-1 omkostninger'!A1 -> Lyngby-Taarbæk Spildevand A/S
B4: Fane 9. Driftsomkostninger til miljø- og servicemål
B6: Tillæg for budgetterede driftsomkostninger til miljø- og servicemål i 2015
C7: 0 | D7: kr.
B8: Tillæg i alt | C8: =SUM(C7:C7) -> 0 | D8: kr.
B12: Korrektion af tillæg for faktiske driftsomkostninger til miljø- og servicemål i 2013
B13: Selskabets faktiske driftsomkostninger til miljø- og servicemål i 2013, jf. reguleringsregnskabet | C13: 0 | D13: kr.
B14: Tillæg for budgetterede driftsomkostninger til miljø- og servicemål i prisloft 2013 | C14: 0 | D14: kr.
B15: Korrektion af tillæg for budgetterede driftsomkostninger til miljø- og servicemål i 2013 | C15: =C13-C14 -> 0 | D15: kr.

Sheet 10. Klimatilpasning
A1: ='9. Miljø- og servicemål'!A1 -> Lyngby-Taarbæk Spildevand A/S
B4: Fane 10. Medfinansiering af klimatilpasningsprojekter
B7: Tillæg for budgetterede omkostninger til medfinansiering af klimatilpasningsprojekter i 2015
B8: Agervang (godkendt i PL2014) | C8: 3145350 | D8: kr.
B9: Sorgenfrigård Nord (godkendt i PL2014) | C9: 0 | D9: kr.
B10: Bondebyen (godkendt i PL2014) | C10: 0 | D10: kr.
B11: Tillæg i alt | C11: =SUM(C8:C10) -> 3145350 | D11: kr.
B15: Korrektion af tillæg for faktiske omkostninger til medfinansiering af klimatilpasningsprojekter i 2013
B16: Selskabets faktiske driftsomkostninger til klimatilpasningsprojekter i 2013, jf. reguleringsregnskabet | C16: 0 | D16: kr.
B17: Tillæg for budgetterede driftsomkostninger til klimatilpasningsprojekter i prisloft 2013 | C17: 0 | D17: kr.
B18: Korrektion af tillæg for budgetterede omkostninger til klimatilpasningsprojekter i 2013 | C18: =C16-C17 -> 0 | D18: kr.

Sheet 11. Nettofinansielle poster
A1: ='10. Klimatilpasning'!A1 -> Lyngby-Taarbæk Spildevand A/S
B4: Fane 11. Nettofinansielle poster
B6: Tillæg for budgetterede nettofinansielle poster i 2015
B7: Budgetterede renteudgifter og gebyrer i 2015 | C7: 3247184 | D7: kr.
B8: Budgetterede renteindtægter i 2015 | C8: 45000 | D8: kr.
B9: Tillæg/fradrag i alt | C9: =C7-C8 -> 3202184 | D9: kr.
B13: Korrektion af tillæg for faktiske nettofinansielle poster i 2013
B14: Selskabets faktiske nettofinansielle poster i 2013, jf. reguleringsregnskabet | C14: 507683 | D14: kr.
B15: Tillæg for budgetterede nettofinansielle poster i prisloft 2013 | C15: -521640 | D15: kr.
B16: Korrektion af tillæg for budgetterede nettofinansielle poster i 2013 | C16: =C14-C15 -> 1029323 | D16: kr.

Sheet 12. Over- eller underdækning
A1: ='11. Nettofinansielle poster'!A1 -> Lyngby-Taarbæk Spildevand A/S
B4: Fane 12. Over- eller underdækning til og med 2010
B6: Tillæg/fradrag for over- eller underdækning til og med 2010
B7: Opgjort over- eller underdækning per 31. december 2010 | C7: -75380171 | D7: kr.
B8: Heraf beløb indregnet i prislofterne for 2011 - 2014 | C8: -28605775.98 | D8: kr.
B9: Endnu ikke indregnet over- eller underdækning | C9: =C7-C8 -> -46774395.02 | D9: kr.
B10: Resterende indregningsperiode (fastsat i prisloftet for 2012) | C10: 6 | D10: år
B11: Tillæg/fradrag i alt | C11: =IF(C7=0,0,C9/C10) -> -7795732.503 | D11: kr.

Sheet 13. Kontrol med indtægtsrammen
A1: Lyngby-Taarbæk Spildevand A/S
B4: Fane 13. Korrektion for overholdelse af indtægtsrammen i prisloftet for 2013
B6: Samlet opgørelse vedrørende overholdelse af indtægtsrammen i prisloftet for 2013
B7: Indtægtsramme i prisloftet for 2013 | E7: 67463836.31 | F7: kr.
B8: Ikke anvendt likviditet vedrørende investeringer i 2013
B9: Tillæg for historiske investeringer | C9: 19101392.22 | D9: kr.
B10: Tillæg for gennemførte investeringer i 2011 | C10: 687997 | D10: kr.
B11: Korrektion af tillæg for planlagte investeringer i 2011 | C11: -1322426 | D11: kr.
B12: Tillæg for planlagte investeringer i 2012 og 2013 | C12: 3517181 | D12: kr.
B13: Indtægter fra tilslutningsbidrag | C13: 53284 | D13: kr.
B14: Indtægter fra salg af anlægsaktiver | C14: 65000 | D14: kr.
B15: Erstatninger vedr. anlægsaktiver mv. | C15: 44283 | D15: kr.
B16: Ekstraordinær effektiviseringsgevinst anvendt til investeringer | C16: 0 | D16: kr.
B17: Udgifter til investeringer | C17: -22146711 | D17: kr.
B18: Ikke anvendt likviditet vedr. investeringer i alt | C18: =SUM(C9:C17) -> 0.2153003663 | D18: kr. | E18: =IF(C18<0,0,-C18) -> -0.2153003663 | F18: kr.
B19: Ekstraordinære effektiviseringsgevinster anvendt til takstnedsættelse
B20: Ekstraordinær effektiviseringsgevinst anvendt til takstnedsættelse | C20: 0 | D20: kr. | E20: =-C20 -> 0 | F20: kr.
B21: Korrektion af ikke opkrævet tillæg fra 2011 i prisloft 2013
B22: Korrektion af ikke opkrævet tillæg fra 2011 i prisloft 2013 | C22: 0 | D22: kr. | E22: =-C22 -> 0 | F22: kr.
B23: Indtægter fra primære aktiviteter mv.
B24: Indtægter fra kubikmetertakster, faste takster, særbidrag, målergebyrer samt andre takster og gebyrer | C24: 62785529 | D24: kr.
B25: Andre indtægter i prisloftåret, som selskabet har opnået i forbindelse med eller som følge af selskabets primære aktiviteter | C25: 13966 | D25: kr.
B26: Indtægter fra primære aktiviteter mv. i alt | C26: =SUM(C24:C25) -> 62799495 | D26: kr. | E26: =-C26 -> -62799495 | F26: kr.
B27: Tillæg/fradrag i prisloftet for 2015 i alt | E27: =E7+E18+E20+E22+E26 -> 4664341.098 | F27: kr.
B31: Oversigt over ekstraordinære effektiviseringsgevinster
C33: 2012 | E33: 2013 | G33: 2014 | I33: 2015 | K33: 2016
B34: Indhentet ekstraordinær effektiviseringsgevinst | C34: 10255771 | D34: kr. | E34: 10559853 | F34: kr. | H34: kr. | J34: kr. | L34: kr.
B35: Gevinst anvendt til investeringer | C35: 1992263 | D35: kr. | E35: 0 | F35: kr. | H35: kr. | J35: kr. | L35: kr.
B36: Gevinst anvendt til takstnedsættelse | C36: 0 | D36: kr. | E36: 0 | F36: kr. | H36: kr. | J36: kr. | L36: kr.
B37: Korrektion for effektiviseringsgevinst der ikke er anvendt inden 4 år | C37: 0 | D37: kr. | E37: 0 | F37: kr. | H37: kr. | J37: kr. | K37: =IF(C38>SUM(E35:I36),C38-SUM(E35:I36),0)*-1 -> -8263508 | L37: kr.
B38: Resterende gevinst | C38: =C34-C35-C36 -> 8263508 | D38: kr. | E38: =C38+E34-E35-E36 -> 18823361 | F38: kr. | G38: =E38+G34-G35-G36 -> 18823361 | H38: kr. | I38: =G38+I34-I35-I36 -> 18823361 | J38: kr. | K38: =K34-K35-K36+K37+I38 -> 10559853 | L38: kr.
